fUSD/lending_fUSD_20250225
["ID","MTS","AMOUNT","RATE_DAILY","PERIOD"]
[354471192,1740521450991,-500.0,0.00049588,2]
[354471193,1740521451000,-500.0,0.00049588,2]
[354471194,1740521451009,-6000.0,0.00049588,120]
[354471195,1740521451018,-500.0,0.00049589,120]
[354471196,1740521451028,-637.41887966,0.00049589,120]
[354471197,1740521451037,-500.0,0.00049589,120]
[354471198,1740521451046,-500.0,0.00049589,120]
[354471199,1740521451055,-500.0,0.00049589,120]
[354471200,1740521451064,-446.42868456,0.00049589,120]
[354471201,1740521451074,-500.0,0.00049589,120]
[354471202,1740521451083,-504.53382117,0.00049589,120]
[354471203,1740521451092,-500.0,0.00049589,120]
[354471204,1740521451102,-500.0,0.00049589,120]
[354471205,1740521451111,-500.0,0.00049589,120]
[354471206,1740521451120,-500.0,0.00049589,120]
[354471207,1740521451128,-500.0,0.00049589,120]
[354471208,1740521451138,-500.0,0.00049589,120]
[354471209,1740521451147,-810.13,0.00049589,120]
[354471210,1740521451157,-500.0,0.00049589,2]
[354471211,1740521451166,-500.0,0.00049589,120]
[354471212,1740521451175,-500.0,0.00049589,120]
[354471213,1740521451184,-500.0,0.00049589,120]
[354471214,1740521451194,-500.0,0.00049589,120]
[354471215,1740521451203,-500.0,0.00049589,120]
[354471216,1740521451213,-500.0,0.00049589,120]
[354471217,1740521451227,-500.0,0.00049589,120]
[354471218,1740521451236,-634.49,0.00049589,120]
[354471219,1740521451246,-185.91038932,0.00049589,120]
[354471220,1740521451255,-516.07167936,0.00049589,120]
[354471221,1740521451264,-500.0,0.00049589,120]
[354471222,1740521451273,-1060.12,0.00049589,120]
[354471223,1740521451283,-500.0,0.00049589,120]
[354471224,1740521451293,-500.0,0.00049589,120]
[354471225,1740521451302,-500.0,0.00049589,120]
[354471226,1740521451312,-500.0,0.00049589,120]
[354471227,1740521451321,-500.0,0.00049589,120]
[354471228,1740521451330,-500.0,0.00049589,120]
[354471229,1740521451339,-500.0,0.00049589,120]
[354471230,1740521451352,-500.0,0.00049589,120]
[354471231,1740521451361,-300.0,0.00049589,120]
[354471232,1740521451370,-508.79825823,0.00049589,120]
[354471233,1740521451379,-500.0,0.00049589,120]
[354471234,1740521451389,-500.0,0.00049589,120]
[354471235,1740521451398,-500.0,0.00049589,120]
[354471236,1740521451407,-561.08,0.00049589,120]
[354471237,1740521451417,-500.0,0.00049589,120]
[354471238,1740521451427,-500.0,0.00049589,120]
[354471239,1740521451437,-500.0,0.00049589,120]
[354471240,1740521451446,-1052.12,0.00049589,120]
[354471241,1740521451455,-500.0,0.00049589,120]
[354471242,1740521451465,-500.0,0.00049589,120]
[354471243,1740521451478,-500.0,0.00049589,16]
[354471244,1740521451487,-500.0,0.00049589,120]
[354471245,1740521451496,-500.0,0.00049589,120]
[354471246,1740521451505,-738.22,0.00049589,120]
[354471247,1740521451515,-786.75,0.00049589,120]
[354471248,1740521451524,-500.0,0.00049589,120]
[354471249,1740521451534,-500.0,0.00049589,120]
[354471250,1740521451543,-500.0,0.00049589,120]
[354471251,1740521451553,-500.0,0.00049589,120]
[354471252,1740521451562,-508.75364971,0.00049589,120]
[354471253,1740521451571,-500.0,0.00049589,120]
[354471254,1740521451580,-500.0,0.00049589,120]
[354471255,1740521451589,-723.03,0.00049589,120]
[354471256,1740521451598,-500.0,0.00049589,120]
[354471257,1740521451608,-500.0,0.00049589,120]
[354471258,1740521451617,-500.0,0.00049589,120]
[354471259,1740521451627,-500.0,0.00049589,120]
[354471260,1740521451636,-500.0,0.00049589,120]
[354471261,1740521451645,-500.0,0.00049589,5]
[354471262,1740521451654,-500.0,0.00049589,120]
[354471263,1740521451663,-500.0,0.00049589,120]
[354471264,1740521451673,-500.0,0.00049589,120]
[354471265,1740521451682,-500.0,0.00049589,120]
[354471266,1740521451691,-500.0,0.00049589,120]
[354471267,1740521451700,-521.26,0.00049589,120]
[354471268,1740521451709,-500.0,0.00049589,120]
[354471269,1740521451720,-500.0,0.00049589,120]
[354471270,1740521451730,-540.16,0.00049589,120]
[354471271,1740521451739,-571.36,0.00049589,120]
[354471272,1740521451749,-500.05,0.00049589,120]
[354471273,1740521451759,-500.0,0.00049589,120]
[354471274,1740521451768,-690.620436,0.00049589,120]
[354471275,1740521451778,-500.0,0.00049589,120]
[354471276,1740521451787,-561.44,0.00049589,120]
[354471277,1740521451796,-500.0,0.00049589,120]
[354471278,1740521451805,-500.0,0.00049589,120]
[354471279,1740521451815,-1099.44,0.00049589,120]
[354471280,1740521451824,-500.0,0.00049589,120]
[354471281,1740521451834,-500.0,0.00049589,120]
[354471282,1740521451843,-500.0,0.00049589,120]
[354471283,1740521451853,-500.0,0.00049589,120]
[354471284,1740521451862,-838.65,0.00049589,120]
[354471285,1740521451871,-500.0,0.00049589,120]
[354471286,1740521451881,-500.0,0.00049589,120]
[354471287,1740521451890,-500.0,0.00049589,120]
[354471288,1740521451899,-833.69,0.00049589,120]
[354471289,1740521451908,-500.0,0.00049589,120]
[354471290,1740521451917,-500.0,0.00049589,120]
[354471291,1740521451927,-500.0,0.00049589,120]
[354471292,1740521451936,-500.0,0.00049589,120]
[354471293,1740521451946,-500.0,0.00049589,120]
[354471294,1740521451955,-500.0,0.00049589,120]
[354471295,1740521451965,-500.0,0.00049589,2]
[354471296,1740521451976,-500.0,0.00049589,120]
[354471297,1740521451984,-500.0,0.00049589,120]
[354471298,1740521451993,-500.0,0.00049589,120]
[354471299,1740521452003,-500.0,0.00049589,120]
[354471300,1740521452012,-373.38212162,0.00049589,3]
[354471301,1740521452021,-500.0,0.00049589,120]
[354471302,1740521452031,-500.0,0.00049589,120]
[354471303,1740521452040,-504.97762926,0.00049589,120]
[354471304,1740521452049,-500.0,0.00049589,120]
[354471305,1740521452058,-500.0,0.00049589,120]
[354471306,1740521452067,-527.67,0.00049589,120]
[354471307,1740521452077,-500.0,0.00049589,120]
[354471308,1740521452086,-500.0,0.00049589,120]
[354471309,1740521452096,-848.19,0.00049589,30]
[354471310,1740521452105,-500.0,0.00049589,120]
[354471311,1740521452115,-636.06168743,0.00049589,120]
[354471312,1740521452125,-500.0,0.00049589,120]
[354471313,1740521452134,-500.0,0.00049589,120]
[354471314,1740521452143,-716.27,0.00049589,120]
[354471315,1740521452153,-1000.0,0.00049589,120]
[354471316,1740521452162,-500.0,0.00049589,120]
[354471317,1740521452171,-500.0,0.00049589,120]
[354471318,1740521452181,-500.0,0.00049589,120]
[354471319,1740521452191,-500.0,0.00049589,120]
[354471320,1740521452200,-500.0,0.00049589,120]
[354471321,1740521452209,-583.31,0.00049589,120]
[354471322,1740521452218,-500.0,0.00049589,120]
[354471323,1740521452227,-500.0,0.00049589,120]
[354471324,1740521452237,-579.68,0.00049589,120]
[354471325,1740521452247,-500.0,0.00049589,120]
[354471326,1740521452257,-500.0,0.00049589,120]
[354471327,1740521452266,-740.85,0.00049589,120]
[354471328,1740521452275,-1513.21,0.00049589,120]
[354471329,1740521452284,-500.0,0.00049589,120]
[354471330,1740521452293,-500.0,0.00049589,120]
[354471331,1740521452303,-501.39364004,0.00049589,120]
[354471332,1740521452312,-500.0,0.00049589,120]
[354471333,1740521452321,-727.82,0.00049589,120]
[354471334,1740521452331,-500.0,0.00049589,120]
[354471335,1740521452341,-500.0,0.00049589,120]
[354471336,1740521452350,-888.16,0.00049589,120]
[354471337,1740521452363,-163.85368833,0.00049589,120]
[354471338,1740521452372,-500.0,0.00049589,120]
[354471339,1740521452381,-500.0,0.00049589,120]
[354471340,1740521452390,-500.0,0.00049589,120]
[354471341,1740521452399,-500.0,0.00049589,120]
[354471342,1740521452408,-500.0,0.00049589,120]
[354471343,1740521452418,-500.0,0.00049589,120]
[354471344,1740521452427,-500.0,0.00049589,120]
[354471345,1740521452437,-869.71,0.00049589,120]
[354471346,1740521452446,-500.0,0.00049589,120]
[354471347,1740521452455,-626.99017825,0.00049589,120]
[354471348,1740521452464,-500.0,0.00049589,120]
[354471349,1740521452475,-1058.53,0.00049589,120]
[354471350,1740521452484,-500.0,0.00049589,120]
[354471351,1740521452493,-500.0,0.00049589,120]
[354471352,1740521452502,-500.0,0.00049589,120]
[354471353,1740521452511,-500.0,0.00049589,120]
[354471354,1740521452520,-682.06,0.00049589,120]
[354471355,1740521452529,-500.0,0.00049589,120]
[354471356,1740521452538,-500.0,0.00049589,120]
[354471357,1740521452547,-500.0,0.00049589,120]
[354471358,1740521452557,-500.0,0.00049589,120]
[354471359,1740521452566,-500.0,0.00049589,120]
[354471360,1740521452575,-500.0,0.00049589,120]
[354471361,1740521452584,-500.0,0.00049589,120]
[354471362,1740521452593,-500.0,0.00049589,120]
[354471363,1740521452602,-500.0,0.00049589,120]
[354471364,1740521452612,-500.0,0.00049589,120]
[354471365,1740521452622,-500.0,0.00049589,120]
[354471366,1740521452631,-500.0,0.00049589,120]
[354471367,1740521452641,-779.24,0.00049589,120]
[354471368,1740521452650,-500.0,0.00049589,120]
[354471369,1740521452659,-500.0,0.00049589,120]
[354471370,1740521452668,-500.0,0.00049589,120]
[354471371,1740521452678,-500.0,0.00049589,120]
[354471372,1740521452687,-500.0,0.00049589,120]
[354471373,1740521452696,-1259.25,0.00049589,120]
[354471374,1740521452706,-531.53944277,0.00049589,120]
[354471375,1740521452715,-500.0,0.00049589,120]
[354471376,1740521452724,-572.16236928,0.00049589,120]
[354471377,1740521452733,-500.0,0.00049589,120]
[354471378,1740521452742,-500.0,0.00049589,120]
[354471379,1740521452751,-500.0,0.00049589,120]
[354471380,1740521452760,-1069.0,0.00049589,120]
[354471381,1740521452769,-500.0,0.00049589,120]
[354471382,1740521452778,-500.0,0.00049589,120]
[354471383,1740521452914,-500.0,0.00049589,120]
[354471384,1740521452923,-500.0,0.00049589,120]
[354471385,1740521452932,-500.0,0.00049589,120]
[354471386,1740521452941,-500.0,0.00049589,120]
[354471387,1740521452950,-500.0,0.00049589,120]
[354471388,1740521452959,-733.56,0.00049589,120]
[354471389,1740521452968,-500.0,0.00049589,120]
[354471390,1740521452979,-500.0,0.00049589,120]
[354471391,1740521452989,-1053.6,0.00049589,120]
[354471392,1740521452998,-500.0,0.00049589,120]
[354471393,1740521453008,-500.0,0.00049589,120]
[354471394,1740521453017,-1075.14,0.00049589,120]
[354471395,1740521453027,-619.12068855,0.00049589,120]
[354471396,1740521453037,-500.0,0.00049589,120]
[354471397,1740521453046,-500.0,0.00049589,120]
[354471398,1740521453055,-1952.01,0.00049589,120]
[354471399,1740521453065,-1000.0,0.00049589,120]
[354471400,1740521453074,-675.24,0.00049589,120]
[354471401,1740521453083,-500.0,0.00049589,120]
[354471402,1740521453093,-500.0,0.00049589,120]
[354471403,1740521453103,-500.0,0.00049589,120]
[354471404,1740521453112,-1679.59,0.00049589,120]
[354471405,1740521453121,-500.0,0.00049589,120]
[354471406,1740521453131,-500.0,0.00049589,120]
[354471407,1740521453140,-500.0,0.00049589,120]
[354471408,1740521453150,-500.0,0.00049589,120]
[354471409,1740521453159,-500.0,0.00049589,120]
[354471410,1740521453168,-500.0,0.00049589,120]
[354471411,1740521453178,-500.0,0.00049589,120]
[354471412,1740521453187,-865.75,0.00049589,120]
[354471413,1740521453197,-500.0,0.00049589,120]
[354471414,1740521453206,-500.0,0.00049589,120]
[354471415,1740521453215,-500.0,0.00049589,120]
[354471416,1740521453225,-692.62,0.00049589,120]
[354471417,1740521453235,-500.0,0.00049589,120]
[354471418,1740521453244,-924.45,0.00049589,120]
[354471419,1740521453254,-500.0,0.00049589,120]
[354471420,1740521453263,-500.0,0.00049589,120]
[354471421,1740521453272,-500.0,0.00049589,120]
[354471422,1740521453282,-500.0,0.00049589,120]
[354471423,1740521453291,-1628.447,0.00049589,120]
[354471424,1740521453300,-500.0,0.00049589,120]
[354471425,1740521453309,-1790.89,0.00049589,120]
[354471426,1740521453319,-500.0,0.00049589,120]
[354471427,1740521453328,-500.0,0.00049589,120]
[354471428,1740521453338,-500.0,0.00049589,120]
[354471429,1740521453351,-500.0,0.00049589,120]
[354471430,1740521453360,-500.0,0.00049589,120]
[354471431,1740521453369,-500.0,0.00049589,120]
[354471432,1740521453379,-500.0,0.00049589,120]
[354471433,1740521453389,-500.0,0.00049589,120]
[354471434,1740521453398,-500.0,0.00049589,120]
[354471435,1740521453407,-500.0,0.00049589,120]
[354471436,1740521453417,-750.46,0.00049589,120]
[354471437,1740521453427,-793.53,0.00049589,120]
[354471438,1740521453437,-500.0,0.00049589,60]
[354471439,1740521453447,-500.0,0.00049589,120]
[354471440,1740521453456,-500.0,0.00049589,120]
[354471441,1740521453465,-500.0,0.00049589,120]
[354471442,1740521453475,-500.0,0.00049589,120]
[354471443,1740521453484,-500.0,0.00049589,120]
[354471444,1740521453494,-284.53473135,0.00049589,120]
[354471445,1740521453504,-500.0,0.00049589,120]
[354471446,1740521453513,-500.0,0.00049589,120]
[354471447,1740521453522,-500.0,0.00049589,120]
[354471448,1740521453532,-500.0,0.00049589,120]
[354471449,1740521453541,-500.0,0.00049589,120]
[354471450,1740521453550,-500.0,0.00049589,120]
[354471451,1740521453560,-500.0,0.00049589,120]
[354471452,1740521453570,-664.33,0.00049589,120]
[354471453,1740521453579,-500.0,0.00049589,120]
[354471454,1740521453588,-500.0,0.00049589,120]
[354471455,1740521453598,-500.0,0.00049589,120]
[354471456,1740521453607,-508.8,0.00049589,120]
[354471457,1740521453617,-713.46,0.00049589,120]
[354471458,1740521453626,-574.52,0.00049589,120]
[354471459,1740521453636,-541.16,0.00049589,120]
[354471460,1740521453645,-500.0,0.00049589,120]
[354471461,1740521453655,-500.0,0.00049589,120]
[354471462,1740521453665,-500.0,0.00049589,120]
[354471463,1740521453674,-500.0,0.00049589,120]
[354471464,1740521453683,-500.0,0.00049589,120]
[354471465,1740521453693,-500.0,0.00049589,120]
[354471466,1740521453702,-500.0,0.00049589,120]
[354471467,1740521453712,-718.41,0.00049589,120]
[354471468,1740521453721,-500.0,0.00049589,120]
[354471469,1740521453731,-500.0,0.00049589,120]
[354471470,1740521453740,-699.66,0.00049589,120]
[354471471,1740521453750,-500.0,0.00049589,120]
[354471472,1740521453759,-1363.73,0.00049589,120]
[354471473,1740521453768,-929.79,0.00049589,120]
[354471474,1740521453778,-500.0,0.00049589,120]
[354471475,1740521453787,-719.93,0.00049589,120]
[354471476,1740521453796,-500.0,0.00049589,120]
[354471477,1740521453806,-500.0,0.00049589,120]
[354471478,1740521453815,-664.68,0.00049589,120]
[354471479,1740521453825,-500.0,0.00049589,120]
[354471480,1740521453835,-500.0,0.00049589,120]
[354471481,1740521453844,-191.25,0.00049589,120]
[354471482,1740521453854,-1218.1,0.00049589,120]
[354471483,1740521453864,-500.0,0.00049589,120]
[354471484,1740521453873,-500.0,0.00049589,120]
[354471485,1740521453883,-528.26,0.00049589,120]
[354471486,1740521453893,-500.0,0.00049589,120]
[354471487,1740521453903,-500.0,0.00049589,120]
[354471488,1740521453912,-1007.09,0.00049589,120]
[354471489,1740521453922,-636.67,0.00049589,120]
[354471490,1740521453932,-500.0,0.00049589,120]
[354471491,1740521453941,-500.0,0.00049589,120]
[354471492,1740521453951,-500.0,0.00049589,120]
[354471493,1740521453960,-596.57,0.00049589,120]
[354471494,1740521453972,-1808.44,0.00049589,120]
[354471495,1740521453982,-500.0,0.00049589,120]
[354471496,1740521453991,-1149.99,0.00049589,120]
[354471497,1740521454000,-500.0,0.00049589,120]
[354471498,1740521454010,-500.0,0.00049589,120]
[354471499,1740521454019,-500.0,0.00049589,120]
[354471500,1740521454028,-500.0,0.00049589,120]
[354471501,1740521454038,-508.20834828,0.00049589,120]
[354471502,1740521454047,-259.70631361,0.00049589,120]
[354471503,1740521454057,-500.0,0.00049589,120]
[354471504,1740521454066,-1189.55,0.00049589,120]
[354471505,1740521454075,-510.19,0.00049589,120]
[354471506,1740521454084,-500.0,0.00049589,120]
[354471507,1740521454094,-500.0,0.00049589,120]
[354471508,1740521454103,-705.35,0.00049589,120]
[354471509,1740521454113,-612.95043303,0.00049589,120]
[354471510,1740521454123,-678.38,0.00049589,120]
[354471511,1740521454132,-500.0,0.00049589,120]
[354471512,1740521454142,-500.0,0.00049589,120]
[354471513,1740521454152,-500.0,0.00049589,120]
[354471514,1740521454161,-500.0,0.00049589,120]
[354471515,1740521454170,-299.61792472,0.00049589,120]
[354471516,1740521454179,-500.0,0.00049589,120]
[354471517,1740521454189,-500.0,0.00049589,120]
[354471518,1740521454199,-500.0,0.00049589,120]
[354471519,1740521454211,-500.0,0.00049589,120]
[354471520,1740521454220,-500.0,0.00049589,120]
[354471521,1740521454231,-500.0,0.00049589,120]
[354471522,1740521454242,-500.0,0.00049589,120]
[354471523,1740521454252,-602.50886953,0.00049589,120]
[354471524,1740521454262,-572.91,0.00049589,120]
[354471525,1740521454272,-500.0,0.00049589,120]
[354471526,1740521454282,-1095.81,0.00049589,120]
[354471527,1740521454292,-1548.47,0.00049589,120]
[354471528,1740521454301,-500.0,0.00049589,120]
[354471529,1740521454311,-500.0,0.00049589,120]
[354471530,1740521454320,-500.0,0.00049589,120]
[354471531,1740521454330,-783.62,0.00049589,120]
[354471532,1740521454340,-500.0,0.00049589,120]
[354471533,1740521454350,-500.0,0.00049589,120]
[354471534,1740521454363,-500.0,0.00049589,120]
[354471535,1740521454373,-1366.93,0.00049589,120]
[354471536,1740521454382,-500.0,0.00049589,120]
[354471537,1740521454392,-500.0,0.00049589,120]
[354471538,1740521454403,-660.48,0.00049589,120]
[354471539,1740521454412,-500.0,0.00049589,120]
[354471540,1740521454421,-699.97,0.00049589,120]
[354471541,1740521454431,-500.0,0.00049589,120]
[354471542,1740521454441,-500.0,0.00049589,120]
[354471543,1740521454450,-500.0,0.00049589,120]
[354471544,1740521454460,-500.0,0.00049589,120]
[354471545,1740521454469,-500.0,0.00049589,120]
[354471546,1740521454479,-956.61,0.00049589,120]
[354471547,1740521454489,-537.2411071,0.00049589,120]
[354471548,1740521454498,-704.28,0.00049589,120]
[354471549,1740521454507,-2519.51,0.00049589,120]
[354471550,1740521454516,-1491.15,0.00049589,120]
[354471551,1740521454526,-2093.57,0.00049589,120]
[354471552,1740521454536,-500.0,0.00049589,120]
[354471553,1740521454546,-500.0,0.00049589,120]
[354471554,1740521454556,-1094.49,0.00049589,120]
[354471555,1740521454565,-500.0,0.00049589,120]
[354471556,1740521454575,-500.0,0.00049589,120]
[354471557,1740521454584,-888.52,0.00049589,120]
[354471558,1740521454593,-500.0,0.00049589,120]
[354471559,1740521454603,-500.0,0.00049589,120]
[354471560,1740521454612,-500.0,0.00049589,120]
[354471561,1740521454621,-500.0,0.00049589,120]
[354471562,1740521454631,-500.0,0.00049589,120]
[354471563,1740521454640,-584.15,0.00049589,120]
[354471564,1740521454650,-500.0,0.00049589,120]
[354471565,1740521454660,-500.0,0.00049589,120]
[354471566,1740521454670,-500.0,0.00049589,120]
[354471567,1740521454679,-1853.5,0.00049589,120]
[354471568,1740521454689,-500.0,0.00049589,120]
[354471569,1740521454699,-500.0,0.00049589,120]
[354471570,1740521454709,-500.0,0.00049589,120]
[354471571,1740521454718,-500.0,0.00049589,120]
[354471572,1740521454729,-503.27184417,0.00049589,120]
[354471573,1740521454738,-501.96538352,0.00049589,7]
[354471574,1740521454748,-523.96579386,0.00049589,120]
[354471575,1740521454758,-500.0,0.00049589,120]
[354471576,1740521454768,-1415.42,0.00049589,120]
[354471577,1740521454777,-500.0,0.00049589,120]
[354471578,1740521454787,-500.0,0.00049589,120]
[354471579,1740521454797,-500.0,0.00049589,120]
[354471580,1740521454807,-500.0,0.00049589,120]
[354471581,1740521454817,-319.84,0.00049589,120]
[354471582,1740521454826,-500.0,0.00049589,120]
[354471583,1740521454836,-500.0,0.00049589,120]
[354471584,1740521454845,-500.0,0.00049589,120]
[354471585,1740521454855,-500.0,0.00049589,120]
[354471586,1740521454864,-500.0,0.00049589,120]
[354471587,1740521454874,-500.0,0.00049589,120]
[354471588,1740521454883,-500.0,0.00049589,120]
[354471589,1740521454893,-909.39,0.00049589,120]
[354471590,1740521454903,-561.24,0.00049589,120]
[354471591,1740521454913,-1929.16,0.00049589,120]
[354471592,1740521454922,-500.0,0.00049589,120]
[354471593,1740521454932,-500.0,0.00049589,120]
[354471594,1740521454942,-824.63,0.00049589,120]
[354471595,1740521454952,-461.20389382,0.00049589,120]
[354471596,1740521454961,-1391.85,0.00049589,120]
[354471597,1740521454971,-275.28,0.00049589,120]
[354471598,1740521454981,-500.0,0.00049589,120]
[354471599,1740521454990,-500.0,0.00049589,120]
[354471600,1740521454999,-500.0,0.00049589,120]
[354471601,1740521455008,-500.0,0.00049589,120]
[354471602,1740521455018,-634.91,0.00049589,120]
[354471603,1740521455027,-500.0,0.00049589,120]
[354471604,1740521455036,-500.0,0.00049589,120]
[354471605,1740521455046,-1081.72,0.00049589,120]
[354471606,1740521455055,-500.0,0.00049589,120]
[354471607,1740521455065,-500.0,0.00049589,120]
[354471608,1740521455074,-500.0,0.00049589,120]
[354471609,1740521455084,-500.0,0.00049589,120]
[354471610,1740521455093,-500.0,0.00049589,120]
[354471611,1740521455103,-500.0,0.00049589,120]
[354471612,1740521455114,-631.04,0.00049589,120]
[354471613,1740521455125,-500.0,0.00049589,120]
[354471614,1740521455135,-1000.0,0.00049589,60]
[354471615,1740521455144,-500.0,0.00049589,120]
[354471616,1740521455154,-2064.97,0.00049589,120]
[354471617,1740521455163,-500.0,0.00049589,120]
[354471618,1740521455172,-981.07,0.00049589,120]
[354471619,1740521455182,-500.0,0.00049589,120]
[354471620,1740521455191,-500.0,0.00049589,120]
[354471621,1740521455521,-500.0,0.00049589,120]
[354471622,1740521455532,-2075.49,0.00049589,120]
[354471623,1740521455542,-500.0,0.00049589,120]
[354471624,1740521455551,-1195.99,0.00049589,120]
[354471625,1740521455561,-500.0,0.00049589,120]
[354471626,1740521455571,-500.0,0.00049589,2]
[354471627,1740521455580,-3256.16,0.00049589,120]
[354471628,1740521455589,-1136.5,0.00049589,120]
[354471629,1740521455598,-2509.91,0.00049589,120]
[354471630,1740521455608,-500.0,0.00049589,120]
[354471631,1740521455617,-831.96,0.00049589,120]
[354471632,1740521455627,-1014.16,0.00049589,120]
[354471633,1740521455636,-500.0,0.00049589,120]
[354471634,1740521455646,-500.0,0.00049589,120]
[354471635,1740521455657,-500.0,0.00049589,120]
[354471636,1740521455667,-1117.43,0.00049589,120]
[354471637,1740521455676,-500.0,0.00049589,120]
[354471638,1740521455686,-500.0,0.00049589,120]
[354471639,1740521455695,-500.0,0.00049589,120]
[354471640,1740521455705,-1375.57,0.00049589,120]
[354471641,1740521455715,-500.0,0.00049589,120]
[354471642,1740521455726,-500.0,0.00049589,120]
[354471643,1740521455735,-500.0,0.00049589,120]
[354471644,1740521455745,-404.7160934,0.00049589,120]
[354471645,1740521457571,-448.36792,0.00049315,120]
[354471646,1740521457582,-805.52208,0.00049315,120]
[354471647,1740521457591,-759.0939066,0.00049589,120]
[354471648,1740521457599,-217.06829584,0.00049589,120]
[354471649,1740521457608,-500.0,0.00049589,120]
[354471650,1740521457617,-615.64,0.00049589,120]
[354471651,1740521457626,-500.0,0.00049589,120]
[354471652,1740521457635,-500.0,0.00049589,120]
[354471653,1740521457645,-500.0,0.00049589,120]
[354471654,1740521457654,-500.0,0.00049589,120]
[354471655,1740521457663,-500.0,0.00049589,120]
[354471656,1740521457672,-1666.77,0.00049589,120]
[354471657,1740521457681,-719.59,0.00049589,120]
[354471658,1740521457689,-500.0,0.00049589,120]
[354471659,1740521457697,-2353.48,0.00049589,120]
[354471660,1740521457705,-500.0,0.00049589,120]
[354471661,1740521457714,-500.0,0.00049589,120]
[354471662,1740521457723,-500.0,0.00049589,120]
[354471663,1740521457732,-500.0,0.00049589,120]
[354471664,1740521457740,-500.0,0.00049589,120]
[354471665,1740521457748,-500.0,0.00049589,120]
[354471666,1740521457756,-285.6153585,0.00049589,120]
[354471667,1740521457765,-500.0,0.00049589,120]
[354471668,1740521457774,-500.0,0.00049589,120]
[354471669,1740521457782,-500.0,0.00049589,120]
[354471670,1740521457791,-500.0,0.00049589,120]
[354471671,1740521457800,-500.0,0.00049589,120]
[354471672,1740521457809,-515.30750674,0.00049589,120]
[354471673,1740521457818,-500.0,0.00049589,120]
[354471674,1740521457827,-877.93,0.00049589,120]
[354471675,1740521457837,-848.48,0.00049589,120]
[354471676,1740521457846,-500.0,0.00049589,120]
[354471677,1740521457856,-500.0,0.00049589,120]
[354471678,1740521457865,-500.0,0.00049589,120]
[354471679,1740521457875,-500.0,0.00049589,120]
[354471680,1740521457884,-500.0,0.00049589,120]
[354471681,1740521457894,-500.0,0.00049589,120]
[354471682,1740521457904,-553.91343597,0.00049589,120]
[354471683,1740521457913,-500.0,0.00049589,120]
[354471684,1740521457923,-500.0,0.00049589,120]
[354471685,1740521457933,-500.0,0.00049589,120]
[354471686,1740521457943,-1806.88,0.00049589,120]
[354471687,1740521457952,-500.0,0.00049589,120]
[354471688,1740521457962,-976.5,0.00049589,120]
[354471689,1740521457974,-1451.13,0.00049589,120]
[354471690,1740521457983,-500.0,0.00049589,120]
[354471691,1740521457992,-539.03,0.00049589,120]